Workbook

Sheet 封面
A1: 2023年部门预算公开表
D4: 单位编码： | E4: 411011
D5: 单位名称： | E5: 岳阳县广播电视台

Sheet 目录
B1: 部门预算公开表
B3: 一、部门预算报表
B4: 1 | C4: 收支总表
B5: 2 | C5: 收入总表
B6: 3 | C6: 支出总表
B7: 4 | C7: 支出预算分类汇总表（按政府预算经济分类）
B8: 5 | C8: 支出预算分类汇总表（按部门预算经济分类）
B9: 6 | C9: 财政拨款收支总表
B10: 7 | C10: 一般公共预算支出表
B11: 8 | C11: 一般公共预算基本支出表--人员经费(工资福利支出)(按政府预算经济分类)
B12: 9 | C12: 一般公共预算基本支出表--人员经费(工资福利支出)(按部门预算经济分类)
B13: 10 | C13: 一般公共预算基本支出表--人员经费(对个人和家庭的补助)(按政府预算经济分类)
B14: 11 | C14: 一般公共预算基本支出表--人员经费(对个人和家庭的补助)（按部门预算经济分类）
B15: 12 | C15: 一般公共预算基本支出表--公用经费(商品和服务支出)（按政府预算经济分类）
B16: 13 | C16: 一般公共预算基本支出表--公用经费(商品和服务支出)(按部门预算经济分类)
B17: 14 | C17: 一般公共预算“三公”经费支出表
B18: 15 | C18: 政府性基金预算支出表
B19: 16 | C19: 政府性基金预算支出分类汇总表（按政府预算经济分类）
B20: 17 | C20: 政府性基金预算支出分类汇总表（按部门预算经济分类）
B21: 18 | C21: 国有资本经营预算表
B22: 19 | C22: 财政专户管理资金预算支出表
B23: 20 | C23: 专项资金预算汇总表
B24: 21 | C24: 项目支出绩效目标表
B25: 22 | C25: 部门整体支出绩效目标表
B26: 23 | C26: 其他资金绩效目标表
B27: 注：以上部门预算报表中，空表表示本部门无相关收支情况。

Sheet 1收支总表
A2: 收支总表
A3: 单位：411001-岳阳县融媒体中心 | G3: 金额单位：万元
A4: 收入 | C4: 支出
A5: 项目 | B5: 预算数 | C5: 项目（按功能分类） | D5: 预算数 | E5: 项目（按部门预算经济分类） | F5: 预算数 | G5: 项目（按政府预算经济分类） | H5: 预算数
A6: 一、一般公共预算拨款收入 | B6: ='2收入总表'!D7 -> 1,154.20 | C6: （一）一般公共服务支出 | E6: 一、基本支出 | F6: ='5支出分类（部门预算）'!G6 -> 975.70 | G6: 一、机关工资福利支出 | H6: 928.54
A7: 经费拨款 | B7: ='2收入总表'!E7 -> 1,154.20 | C7: （二）外交支出 | E7: 工资福利支出 | F7: ='5支出分类（部门预算）'!H6 -> 928.54 | G7: 二、机关商品和服务支出 | H7: =F8+F10 -> 273.16
A8: 纳入一般公共预算管理的非税收入拨款 | C8: （三）国防支出 | E8: 商品和服务支出 | F8: ='5支出分类（部门预算）'!I6 -> 47.16 | G8: 三、机关资本性支出（一）
A9: 行政事业性收费收入 | C9: （四）公共安全支出 | E9: 对个人和家庭的补助 | G9: 四、机关资本性支出（二）
A10: 专项收入 | C10: （五）教育支出 | E10: 二、项目支出 | F10: ='5支出分类（部门预算）'!K6 -> 226.00 | G10: 五、对事业单位经常性补助
A11: 国有资本经营收入 | C11: （六）科学技术支出 | E11: 按项目管理的工资福利支出 | G11: 六、对事业单位资本性补助
A12: 国有资源（资产）有偿使用收入 | C12: （七）文化旅游体育与传媒支出 | D12: ='6财政拨款收支总表'!D13 -> 1,201.70 | E12: 按项目管理的商品和服务支出 | F12: ='5支出分类（部门预算）'!M6 -> 226.00 | G12: 七、对企业补助
A13: 罚没收入 | C13: （八）社会保障和就业支出 | E13: 按项目管理的对个人和家庭的补助 | G13: 八、对企业资本性支出
A14: 捐赠收入 | C14: （九）社会保险基金支出 | E14: 债务利息及费用支出 | G14: 九、对个人和家庭的补助
A15: 政府住房基金收入 | C15: （十）卫生健康支出 | E15: 资本性支出（基本建设） | G15: 十、对社会保障基金补助
A16: 其他纳入一般公共预算管理的非税收入 | C16: （十一）节能环保支出 | E16: 资本性支出 | G16: 十一、债务利息及费用支出
A17: 一般债券 | C17: （十二）城乡社区支出 | E17: 对企业补助（基本建设） | G17: 十二、债务还本支出
A18: 外国政府和国际组织贷款 | C18: （十三）农林水支出 | E18: 对企业补助 | G18: 十三、转移性支出
A19: 外国政府和国际组织捐赠 | C19: （十四）交通运输支出 | E19: 对社会保障基金补助 | G19: 十四、其他支出
A20: 二、政府性基金预算拨款收入 | C20: （十五）资源勘探工业信息等支出 | E20: 其他支出
A21: 三、国有资本经营预算拨款收入 | C21: （十六）商业服务业等支出 | E21: 三、事业单位经营服务支出
A22: 四、社会保障基金预算资金 | C22: （十七）金融支出
A23: 五、财政专户管理资金收入 | C23: （十八）援助其他地区支出
A24: 六、上级财政补助收入 | C24: （十九）自然资源海洋气象等支出
A25: 一般公共预算补助 | C25: （二十）住房保障支出
A26: 政府性基金补助 | C26: （二十一）粮油物资储备支出
A27: 国有资本经营预算补助 | C27: （二十二）国有资本经营预算支出
A28: 七、事业收入 | C28: （二十三）灾害防治及应急管理支出
A29: 八、事业单位经营收入 | C29: （二十四）预备费
A30: 九、上级单位补助收入 | C30: （二十五）其他支出
A31: 十、附属单位上缴收入 | C31: （二十六）转移性支出
A32: 十一、其他收入 | C32: （二十七）债务还本支出
C33: （二十八）债务付息支出
C34: （二十九）债务发行费用支出
C35: （三十）抗疫特别国债安排的支出
A37: 本 年 收 入 合 计 | B37: =1154.2 -> 1,154.20 | C37: 本 年 支 出 合 计 | D37: =D12+D13+D15+D25 -> 1,201.70 | E37: 本 年 支 出 合 计 | F37: =F6+F10 -> 1,201.70 | G37: 本 年 支 出 合 计 | H37: =H6+H7 -> 1,201.70
A38: 上年结转结余 | B38: 47.50 | C38: 年终结转结余 | E38: 年终结转结余 | G38: 年终结转结余
A40: 收 入 总 计 | B40: =B6+B20+B21+B22+B23+B24+B28+B29+B30+B31+B32+B38 -> 1,201.70 | C40: 支 出 总 计 | D40: =D37 -> 1,201.70 | E40: 支 出 总 计 | F40: =F6+F10 -> 1,201.70 | G40: 支 出 总 计 | H40: =H37 -> 1,201.70

Sheet 2收入总表
A2: 收入总表
A3: 单位：岳阳县广播电视台 | X3: 金额单位：万元
A4: 部门（单位）代码 | B4: 部门（单位）名称 | C4: 合计 | D4: 本年收入 | S4: 上年结转结余
D5: 小计 | E5: 一般公共预算 | F5: 政府性基金预算 | G5: 国有资本经营预算 | H5: 社会保险基金预算资金 | I5: 财政专户管理资金 | J5: 上级财政补助收入 | N5: 事业收入 | O5: 事业单位经营收入 | P5: 上级单位补助收入 | Q5: 附属单位上缴收入 | R5: 其他收入 | S5: 小计 | T5: 一般公共预算 | U5: 政府性基金预算 | V5: 国有资本经营预算 | W5: 社会保险基金预算资金 | X5: 财政专户管理资金 | Y5: 单位资金
J6: 一般公共预算补助 | K6: 政府性基金补助 | L6: 国有资本经营预算补助 | M6: 社会保险基金预算资金
B7: 合计 | C7: =D7+S7 -> 1,201.70 | D7: 1,154.20 | E7: 1,154.20 | S7: =T7 -> 47.50 | T7: 47.50
A8: 411 | B8: 岳阳县广播电视台 | C8: =D8+S8 -> 1,201.70 | D8: 1,154.20 | E8: 1,154.20 | S8: =T8 -> 47.50 | T8: 47.50
A9: 411011 | B9: 岳阳县广播电视台 | C9: =D9+S9 -> 1,201.70 | D9: 1,154.20 | E9: 1,154.20 | S9: =T9 -> 47.50 | T9: 47.50

Sheet 3支出总表
A2: 支出总表
A3: 单位：岳阳县广播电视台 | K3: 金额单位：万元
A4: 功能科目 | D4: 科目编码 | E4: 科目名称 | F4: 合计 | G4: 基本支出 | H4: 项目支出 | I4: 事业单位经营支出 | J4: 上缴上级支出 | K4: 对附属单位补助支出
A5: 类 | B5: 款 | C5: 项
D6: 合计 | F6: 1,201.70 | G6: =F6-H6 -> 975.70 | H6: 226.00
D7: 411 | E7: 岳阳县广播电视台 | F7: 1,201.70 | G7: =F7-H7 -> 975.70 | H7: 226.00
D8: 411011 | E8: 岳阳县广播电视台 | F8: 1,201.70 | G8: 975.70 | H8: 226.00
A9: 207 | B9: 08 | C9: 01 | D9: 2070801 | E9: 行政运行 | F9: =G9+H9 -> 776.93 | G9: =G8-G11-G12-G13-G14 -> 776.93
A10: 207 | B10: 08 | C10: 99 | D10: 2070899 | E10: 其他广播电视支出 | F10: 226 | H10: 226
A11: 208 | B11: 05 | C11: 05 | D11: 2080505 | E11: 机关事业单位基本养老保险缴费支出 | F11: 82.61 | G11: 82.61
A12: 208 | B12: 99 | C12: 99 | D12: 2089999 | E12: 其他社会保障和就业支出 | F12: 5.16 | G12: 5.16
A13: 210 | B13: 11 | C13: 02 | D13: 2101102 | E13: 事业单位医疗 | F13: 49.05 | G13: 49.05
A14: 221 | B14: 02 | C14: 01 | D14: 2210201 | E14: 住房公积金 | F14: 61.95 | G14: 61.95

Sheet 4支出分类(政府预算)
A2: 支出预算分类汇总表（按政府预算经济分类）
A3: 单位：岳阳县广播电视台 | S3: 金额单位：万元
A4: 功能科目 | D4: 单位代码 | E4: 单位名称（功能科目） | F4: 总 计 | G4: 机关工资福利支出 | H4: 机关商品和服务支出 | I4: 机关资本性支出(一) | J4: 机关资本性支出(二) | K4: 对事业单位经常性补助 | L4: 对事业单位资本性补助 | M4: 对企业补助 | N4: 对企业资本性支出 | O4: 对个人和家庭的补助 | P4: 对社会保障基金补助 | Q4: 债务利息及费用支出 | R4: 债务还本支出 | S4: 转移性支出 | T4: 其他支出
A5: 类 | B5: 款 | C5: 项
D6: 合计 | F6: =G6+H6 -> 1,201.70 | G6: ='1收支总表'!H6 -> 928.54 | H6: ='1收支总表'!H7 -> 273.16
D7: 411 | E7: 岳阳县广播电视台 | F7: =G7+H7 -> 1,201.70 | G7: 928.54 | H7: 273.16
D8: 411011 | E8: 岳阳县广播电视台 | F8: =G8+H8 -> 1,201.70 | G8: 928.54 | H8: 273.16
A9: 207 | B9: 08 | C9: 01 | D9: 411001 | E9: 行政运行 | F9: =G9+H9 -> 776.93 | G9: =G6-G10-G11-G12-G13 -> 729.77 | H9: 47.16
A10: 208 | B10: 05 | C10: 05 | D10: 411001 | E10: 机关事业单位基本养老保险缴费支出 | F10: =G10 -> 82.61 | G10: 82.61
A11: 208 | B11: 99 | C11: 99 | D11: 411001 | E11: 其他社会保障和就业支出 | F11: =G11 -> 5.16 | G11: 5.16
A12: 210 | B12: 11 | C12: 02 | D12: 411001 | E12: 事业单位医疗 | F12: =G12 -> 49.05 | G12: 49.05
A13: 221 | B13: 02 | C13: 01 | D13: 411001 | E13: 住房公积金 | F13: =G13 -> 61.95 | G13: 61.95
A14: 207 | B14: 08 | C14: 99 | D14: 411001 | E14: 其他广播电视支出 | F14: 226.00 | H14: 226.00

Sheet 5支出分类（部门预算）
A2: 支出预算分类汇总表（按部门预算经济分类）
A3: 单位：岳阳县广播电视台 | T3: 金额单位：万元
A4: 功能科目 | D4: 单位代码 | E4: 单位名称（功能科目） | F4: 总 计 | G4: 基本支出 | K4: 项目支出
A5: 类 | B5: 款 | C5: 项 | G5: 合计 | H5: 工资福利支出 | I5: 一般商品和服务支出 | J5: 对个人和家庭的补助 | K5: 合计 | L5: 按项目管理的工资福利支出 | M5: 按项目管理的商品和服务支出 | N5: 按项目管理的对个人和家庭的补助 | O5: 债务利息及费用支出 | P5: 资本性支出（基本建设） | Q5: 资本性支出 | R5: 对企业补助（基本建设） | S5: 对企业补助 | T5: 对社会保障基金补助 | U5: 其他支出
E6: 合计 | F6: 1,201.70 | G6: =F6-K6 -> 975.70 | H6: =G6-I6 -> 928.54 | I6: 47.16 | K6: 226.00 | M6: 226.00
D7: 411 | E7: 岳阳县广播电视台 | F7: 1,201.70 | G7: =F7-K7 -> 975.70 | H7: =G7-I7 -> 928.54 | I7: 47.16 | K7: 226.00 | M7: 226.00
D8: 411011 | E8: 岳阳县广播电视台 | F8: 1,201.70 | G8: =F8-K8 -> 975.70 | H8: =G8-I8 -> 928.54 | I8: 47.16 | K8: 226.00 | M8: 226.00
A9: 207 | B9: 08 | C9: 01 | D9: 411001 | E9: 行政运行 | F9: =G9 -> 776.93 | G9: =H9+I9 -> 776.93 | H9: =H8-H10-H11-H12-H13 -> 729.77 | I9: 47.16
A10: 208 | B10: 05 | C10: 05 | D10: 411001 | E10: 机关事业单位基本养老保险缴费支出 | F10: =G10 -> 82.61 | G10: =H10 -> 82.61 | H10: 82.61
A11: 208 | B11: 99 | C11: 99 | D11: 411001 | E11: 其他社会保障和就业支出 | F11: =G11 -> 5.16 | G11: =H11 -> 5.16 | H11: 5.16
A12: 210 | B12: 11 | C12: 02 | D12: 411001 | E12: 事业单位医疗 | F12: =G12 -> 49.05 | G12: =H12 -> 49.05 | H12: 49.05
A13: 221 | B13: 02 | C13: 01 | D13: 411001 | E13: 住房公积金 | F13: =G13 -> 61.95 | G13: =H13 -> 61.95 | H13: 61.95
A14: 207 | B14: 08 | C14: 99 | D14: 411001 | E14: 其他广播电视支出 | F14: =K14 -> 226.00 | K14: 226.00 | M14: 226.00

Sheet 6财政拨款收支总表
A2: 财政拨款收支总表
A3: 单位：岳阳县广播电视台 | D3: 金额单位：万元
A4: 收入 | C4: 支出
A5: 项目 | B5: 预算数 | C5: 项目 | D5: 预算数
A6: 一、本年收入 | B6: =B7 -> 1,154.20 | C6: 一、本年支出 | D6: =D13 -> 1,201.70
A7: （一）一般公共预算拨款 | B7: ='1收支总表'!B6 -> 1,154.20 | C7: （一）一般公共服务支出
A8: 经费拨款 | B8: ='1收支总表'!B7 -> 1,154.20 | C8: （二）外交支出
A9: 纳入一般公共预算管理的非税收入拨款 | C9: （三）国防支出
A10: （二）政府性基金预算拨款 | C10: （四）公共安全支出
A11: （三）国有资本经营预算拨款 | C11: （五）教育支出
A12: （四）社会保险基金预算资金 | C12: （六）科学技术支出
A13: 二、上年结转 | B13: =B14 -> 47.50 | C13: （七）文化旅游体育与传媒支出 | D13: 1,201.70
A14: （一）一般公共预算拨款 | B14: ='2收入总表'!T9 -> 47.50 | C14: （八）社会保障和就业支出
A15: （二）政府性基金预算拨款 | C15: （九）社会保险基金支出
A16: （三）国有资本经营预算拨款 | C16: （十）卫生健康支出
A17: （四）社会保险基金预算资金 | C17: （十一）节能环保支出
C18: （十二）城乡社区支出
C19: （十三）农林水支出
C20: （十四）交通运输支出
C21: （十五）资源勘探工业信息等支出
C22: （十六）商业服务业等支出
C23: （十七）金融支出
C24: （十八）援助其他地区支出
C25: （十九）自然资源海洋气象等支出
C26: （二十）住房保障支出
C27: （二十一）粮油物资储备支出
C28: （二十二）国有资本经营预算支出
C29: （二十三）灾害防治及应急管理支出
C30: （二十四）预备费
C31: （二十五）其他支出
C32: （二十六）转移性支出
C33: （二十七）债务还本支出
C34: （二十八）债务付息支出
C35: （二十九）债务发行费用支出
C36: （三十）抗疫特别国债安排的支出
C38: 二、年终结转结余
A40: 收 入 总 计 | B40: =B6+B13 -> 1,201.70 | C40: 支 出 总 计 | D40: =D6 -> 1,201.70

Sheet 7一般公共预算支出表
A2: 一般公共预算支出表
A3: 单位：岳阳县广播电视台 | K3: 金额单位：万元
A4: 功能科目 | D4: 科目编码 | E4: 科目名称 | F4: 合计 | G4: 基本支出 | L4: 项目支出
G5: 小计 | H5: 人员经费 | K5: 公用经费
A6: 类 | B6: 款 | C6: 项 | H6: 工资福利支出 | I6: 商品和服务支出 | J6: 对个人和家庭的补助
E7: 合计 | F7: 1201.70 | G7: =F7-L7 -> 975.70 | H7: =G7-I7-K7 -> 928.54 | K7: 47.16 | L7: =L9 -> 226.00
D8: 411 | E8: 岳阳县广播电视台 | F8: 1,201.70 | G8: =F8-L8 -> 975.70 | H8: =G8-I8-K8 -> 928.54 | K8: 47.16 | L8: =L9 -> 226.00
D9: 411011 | E9: 岳阳县广播电视台 | F9: =F10+F11+F12+F13+F14+F15 -> 1,201.70 | G9: =G10+G11+G12+G13+G14+G15 -> 975.70 | H9: =H10+H12+H13+H14+H15 -> 928.54 | K9: 47.16 | L9: =L11 -> 226.00
A10: 207 | B10: 08 | C10: 01 | D10: 2070801 | E10: 行政运行 | F10: =G10 -> 776.93 | G10: =H10+K10 -> 776.93 | H10: =H8-H12-H13-H14-H15 -> 729.77 | K10: 47.16
A11: 207 | B11: 08 | C11: 99 | D11: 2070899 | E11: 其他广播电视支出 | F11: =L11 -> 226.00 | L11: 226.00
A12: 208 | B12: 05 | C12: 05 | D12: 2080505 | E12: 机关事业单位基本养老保险缴费支出 | F12: =G12 -> 82.61 | G12: =H12 -> 82.61 | H12: 82.61
A13: 208 | B13: 99 | C13: 99 | D13: 2089999 | E13: 其他社会保障和就业支出 | F13: =G13 -> 5.16 | G13: =H13 -> 5.16 | H13: 5.16
A14: 210 | B14: 11 | C14: 02 | D14: 2101102 | E14: 事业单位医疗 | F14: =G14 -> 49.05 | G14: =H14 -> 49.05 | H14: 49.05
A15: 221 | B15: 02 | C15: 01 | D15: 2210201 | E15: 住房公积金 | F15: =G15 -> 61.95 | G15: =H15 -> 61.95 | H15: 61.95

Sheet 8工资福利(政府预算)
A2: 一般公共预算基本支出表--人员经费(工资福利支出)(按政府预算经济分类)
A3: 单位：岳阳县广播电视台 | M3: 金额单位：万元
A4: 功能科目 | D4: 单位代码 | E4: 单位名称（功能科目） | F4: 总 计 | G4: 机关工资福利支出 | L4: 对事业单位经常性补助
A5: 类 | B5: 款 | C5: 项 | G5: 合计 | H5: 工资奖金津补贴 | I5: 社会保障缴费 | J5: 住房公积金 | K5: 其他工资福利支出 | L5: 合计 | M5: 工资福利支出 | N5: 其他对事业单位补助
E6: 合计 | F6: ='7一般公共预算支出表'!H7 -> 928.54 | L6: =M6 -> 928.54 | M6: =F6 -> 928.54
D7: 411 | E7: 岳阳县广播电视台 | F7: ='7一般公共预算支出表'!H8 -> 928.54 | L7: =M7 -> 928.54 | M7: =F7 -> 928.54
D8: 411011 | E8: 岳阳县广播电视台 | F8: ='7一般公共预算支出表'!H9 -> 928.54 | L8: 928.54 | M8: 928.54
A9: 207 | B9: 08 | C9: 01 | D9: 411001 | E9: 行政运行 | F9: =F8-F10-F11-F12-F13 -> 729.77 | L9: 729.77 | M9: 729.77
A10: 208 | B10: 05 | C10: 05 | D10: 411001 | E10: 机关事业单位基本养老保险缴费支出 | F10: 82.61 | L10: 82.61 | M10: 82.61
A11: 208 | B11: 99 | C11: 99 | D11: 411001 | E11: 其他社会保障和就业支出 | F11: 5.16 | L11: 5.16 | M11: 5.16
A12: 210 | B12: 11 | C12: 02 | D12: 411001 | E12: 事业单位医疗 | F12: 49.05 | L12: 49.05 | M12: 49.05
A13: 221 | B13: 02 | C13: 01 | D13: 411001 | E13: 住房公积金 | F13: 61.95 | L13: 61.95 | M13: 61.95

Sheet 9工资福利
A2: 一般公共预算基本支出表--人员经费(工资福利支出)(按部门预算经济分类)
A3: 单位：岳阳县广播电视台 | U3: 金额单位：万元
A4: 功能科目 | D4: 单位代码 | E4: 单位名称（功能科目） | F4: 总 计 | G4: 工资津补贴 | L4: 社会保障缴费 | R4: 住房公积金 | S4: 其他工资福利支出
A5: 类 | B5: 款 | C5: 项 | G5: 合计 | H5: 基本工资 | I5: 津贴补贴 | J5: 奖金 | K5: 绩效工资 | L5: 合计 | M5: 机关事业单位基本养老保险缴费 | N5: 职业年金缴费 | O5: 职工基本医疗保险缴费 | P5: 公务员医疗补助缴费 | Q5: 其他社会保障缴费 | S5: 合计 | T5: 伙食补助费 | U5: 医疗费 | V5: 其他工资福利支出
E6: 合计 | F6: =G6+L6+R6 -> 928.54 | G6: =H6+I6+K6 -> 729.77 | H6: 348.46 | I6: =136.49+47.5+53.68 -> 237.67 | K6: 143.64 | L6: =M6+O6+P6+Q6 -> 136.82 | M6: 82.61 | O6: =49.05-5.16 -> 43.89 | P6: 5.16 | Q6: 5.16 | R6: 61.95
D7: 411 | E7: 岳阳县广播电视台 | F7: =G7+L7+R7 -> 928.54 | G7: =H7+I7+K7 -> 729.77 | H7: 348.46 | I7: =136.49+47.5+53.68 -> 237.67 | K7: 143.64 | L7: =M7+O7+P7+Q7 -> 136.82 | M7: 82.61 | O7: =49.05-5.16 -> 43.89 | P7: 5.16 | Q7: 5.16 | R7: 61.95
D8: 411011 | E8: 岳阳县广播电视台 | F8: =G8+L8+R8 -> 928.54 | G8: 729.77 | H8: 348.46 | I8: =136.49+47.5+53.68 -> 237.67 | K8: 143.64 | L8: 136.82 | M8: 82.61 | O8: =49.05-5.16 -> 43.89 | P8: 5.16 | Q8: 5.16 | R8: 61.95
A9: 207 | B9: 08 | C9: 01 | D9: 411001 | E9: 行政运行 | F9: =G9+L9 -> 729.77 | G9: 729.77 | H9: 348.46 | I9: =136.49+47.5+53.68 -> 237.67 | K9: 143.64
A10: 208 | B10: 05 | C10: 05 | D10: 411001 | E10: 机关事业单位基本养老保险缴费支出 | F10: =L10 -> 82.61 | L10: =M10 -> 82.61 | M10: 82.61
A11: 208 | B11: 99 | C11: 99 | D11: 411001 | E11: 其他社会保障和就业支出 | F11: =L11 -> 5.16 | L11: =Q11 -> 5.16 | Q11: 5.16
A12: 210 | B12: 11 | C12: 02 | D12: 411001 | E12: 事业单位医疗 | F12: =L12 -> 49.05 | L12: =O12+P12 -> 49.05 | O12: 43.89 | P12: 5.16
A13: 221 | B13: 02 | C13: 01 | D13: 411001 | E13: 住房公积金 | F13: 61.95 | R13: 61.95

Sheet 10个人家庭(政府预算)
A2: 一般公共预算基本支出表--人员经费(对个人和家庭的补助)(按政府预算经济分类)
A3: 单位：岳阳县广播电视台 | J3: 金额单位：万元
A4: 功能科目 | D4: 单位代码 | E4: 单位名称（功能科目） | F4: 总计 | G4: 社会福利和救济 | H4: 助学金 | I4: 个人农业生产补贴 | J4: 离退休费 | K4: 其他对个人和家庭的补助
A5: 类 | B5: 款 | C5: 项
E6: 合计 | F6: 0.00
A11: 本单位无对个人和家庭的补助支出预算的安排，故以空表列示

Sheet 11个人家庭
A2: 一般公共预算基本支出表--人员经费(对个人和家庭的补助)（按部门预算经济分类）
A3: 单位：岳阳县广播电视台 | Q3: 金额单位：万元
A4: 功能科目 | D4: 单位代码 | E4: 单位名称（功能科目） | F4: 总计 | G4: 离休费 | H4: 退休费 | I4: 退职（役）费 | J4: 抚恤金 | K4: 生活补助 | L4: 救济费 | M4: 医疗费补助 | N4: 助学金 | O4: 奖励金 | P4: 代缴社会保险费 | Q4: 个人农业生产补贴 | R4: 其他对个人和家庭的补助
A5: 类 | B5: 款 | C5: 项
E6: 合计 | F6: 0.00
A11: 本单位无对个人和家庭的补助支出预算的安排，故以空表列示

Sheet 12商品服务(政府预算)
A2: 一般公共预算基本支出表--公用经费(商品和服务支出)（按政府预算经济分类）
A3: 单位：岳阳县广播电视台 | S3: 金额单位：万元
A4: 功能科目 | D4: 单位代码 | E4: 单位名称（功能科目） | F4: 总计 | G4: 机关商品和服务支出 | R4: 对事业单位经常性补助
A5: 类 | B5: 款 | C5: 项 | G5: 合计 | H5: 办公经费 | I5: 会议费 | J5: 培训费 | K5: 专用材料购置费 | L5: 委托业务费 | M5: 公务接待费 | N5: 因公出国（境）费用 | O5: 公务用车运行维护费 | P5: 维修(护)费 | Q5: 其他商品和服务支出 | R5: 合计 | S5: 商品和服务支出 | T5: 其他对事业单位补助
E6: 合计 | F6: =H6+I6+K6+M6+P6+Q6 -> 47.16 | H6: ='13商品服务'!G6 -> 5.00 | I6: ='13商品服务'!T6 -> 1.00 | K6: ='13商品服务'!W6 -> 4.00 | M6: ='13商品服务'!V6 -> 5.00 | P6: ='13商品服务'!R6 -> 5.00 | Q6: =47.16-H6-I6-K6-M6-P6 -> 27.16
D7: 411 | E7: 岳阳县广播电视台 | F7: =H7+I7+K7+M7+P7+Q7 -> 47.16 | H7: ='13商品服务'!G7 -> 5.00 | I7: ='13商品服务'!T7 -> 1.00 | K7: ='13商品服务'!W7 -> 4.00 | M7: ='13商品服务'!V7 -> 5.00 | P7: ='13商品服务'!R7 -> 5.00 | Q7: 27.16
D8: 411011 | E8: 岳阳县广播电视台 | F8: =H8+I8+K8+M8+P8+Q8 -> 47.16 | H8: ='13商品服务'!G8 -> 5.00 | I8: ='13商品服务'!T8 -> 1.00 | K8: ='13商品服务'!W8 -> 4.00 | M8: ='13商品服务'!V8 -> 5.00 | P8: ='13商品服务'!R8 -> 5.00 | Q8: 27.16
A9: 207 | B9: 08 | C9: 01 | D9: 411011 | E9: 行政运行 | F9: =H9+I9+K9+M9+P9+Q9 -> 47.16 | H9: ='13商品服务'!G9 -> 5.00 | I9: ='13商品服务'!T9 -> 1.00 | K9: ='13商品服务'!W9 -> 4.00 | M9: ='13商品服务'!V9 -> 5.00 | P9: ='13商品服务'!R9 -> 5.00 | Q9: 27.16

Sheet 13商品服务
A2: 一般公共预算基本支出表--公用经费(商品和服务支出)(按部门预算经济分类)
A3: 单位：岳阳县广播电视台 | AF3: 金额单位：万元
A4: 功能科目 | D4: 单位代码 | E4: 单位名称（功能科目） | F4: 总 计 | G4: 办公费 | H4: 印刷费 | I4: 咨询费 | J4: 手续费 | K4: 水费 | L4: 电费 | M4: 邮电费 | N4: 取暖费 | O4: 物业管理费 | P4: 差旅费 | Q4: 因公出国（境）费用 | R4: 维修(护)费 | S4: 租赁费 | T4: 会议费 | U4: 培训费 | V4: 公务接待费 | W4: 专用材料费 | X4: 被装购置费 | Y4: 专用燃料费 | Z4: 劳务费 | AA4: 委托业务费 | AB4: 工会经费 | AC4: 福利费 | AD4: 公务用车运行维护费 | AE4: 其他交通费用 | AF4: 税金及附加费用 | AG4: 其他商品和服务支出
A5: 类 | B5: 款 | C5: 项
E6: 合计 | F6: =G6+H6+K6+L6+O6+P6+R6+T6+W6+Z6+AE6+V6 -> 47.16 | G6: 5.00 | H6: 1.00 | K6: 1.00 | L6: 1.00 | O6: =O7 -> 7.00 | P6: 5.00 | R6: 5.00 | T6: 1.00 | V6: =V7 -> 5.00 | W6: 4.00 | Z6: =Z7 -> 7.66 | AE6: 4.50
D7: 411 | E7: 岳阳县广播电视台 | F7: =G7+H7+K7+L7+O7+P7+R7+T7+W7+Z7+AE7+V7 -> 47.16 | G7: 5.00 | H7: 1.00 | K7: 1.00 | L7: 1.00 | O7: =O8 -> 7.00 | P7: 5.00 | R7: 5.00 | T7: 1.00 | V7: =V8 -> 5.00 | W7: 4.00 | Z7: =Z8 -> 7.66 | AE7: 4.50
D8: 411011 | E8: 岳阳县广播电视台 | F8: =G8+H8+K8+L8+O8+P8+R8+T8+W8+Z8+AE8+V8 -> 47.16 | G8: 5.00 | H8: 1.00 | K8: 1.00 | L8: 1.00 | O8: =O9 -> 7.00 | P8: 5.00 | R8: 5.00 | T8: 1.00 | V8: =V9 -> 5.00 | W8: 4.00 | Z8: =Z9 -> 7.66 | AE8: 4.50
A9: 207 | B9: 08 | C9: 01 | D9: 411011 | E9: 行政运行 | F9: =G9+H9+K9+L9+O9+P9+R9+T9+W9+Z9+AE9+V9 -> 47.16 | G9: 5.00 | H9: 1.00 | K9: 1.00 | L9: 1.00 | O9: 7.00 | P9: 5.00 | R9: 5.00 | T9: 1.00 | V9: 5.00 | W9: 4.00 | Z9: 7.66 | AE9: 4.50

Sheet 14三公
A2: 一般公共预算“三公”经费支出表
A3: 单位：岳阳县广播电视台 | G3: 金额单位：万元
A4: 单位编码 | B4: 单位名称 | C4: “三公”经费合计 | D4: 因公出国（境）费 | E4: 公务用车购置及运行费 | H4: 公务接待费
E5: 小计 | F5: 公务用车购置费 | G5: 公务用车运行费
B6: 合计 | C6: 5.00 | H6: 5.00
A7: 411 | B7: 岳阳县广播电视台 | C7: 5.00 | H7: 5.00
A8: 411001 | B8: 岳阳县广播电视台 | C8: 5.00 | H8: 5.00

Sheet 15政府性基金
A2: 政府性基金预算支出表
A3: 单位：岳阳县广播电视台 | G3: 金额单位：万元
A4: 科目编码 | B4: 科目名称 | C4: 合计 | D4: 本年政府性基金预算支出 | H4: 项目支出
D5: 小计 | E5: 人员经费 | G5: 公用经费
E6: 工资福利支出 | F6: 对个人和家庭的补助
B7: 合计 | C7: 0.00
A14: 本单位无对政府性基金预算支出的安排，故以空表列示

Sheet 16政府性基金(政府预算)
A2: 政府性基金预算支出分类汇总表（按政府预算经济分类）
A3: 单位：岳阳县广播电视台 | S3: 金额单位：万元
A4: 功能科目 | D4: 单位代码 | E4: 单位名称（功能科目） | F4: 总 计 | G4: 机关工资福利支出 | H4: 机关商品和服务支出 | I4: 机关资本性支出(一) | J4: 机关资本性支出(二) | K4: 对事业单位经常性补助 | L4: 对事业单位资本性补助 | M4: 对企业补助 | N4: 对企业资本性支出 | O4: 对个人和家庭的补助 | P4: 对社会保障基金补助 | Q4: 债务利息及费用支出 | R4: 债务还本支出 | S4: 转移性支出 | T4: 其他支出
A5: 类 | B5: 款 | C5: 项
E6: 合计 | F6: 0.00
A11: 本单位无对政府性基金预算支出的安排，故以空表列示

Sheet 17政府性基金（部门预算）
A2: 政府性基金预算支出分类汇总表（按部门预算经济分类）
A3: 单位：岳阳县广播电视台 | P3: 金额单位：万元
A4: 功能科目 | D4: 单位代码 | E4: 单位名称（功能科目） | F4: 总 计 | G4: 基本支出 | K4: 项目支出
A5: 类 | B5: 款 | C5: 项 | G5: 合计 | H5: 工资福利支出 | I5: 一般商品和服务支出 | J5: 对个人和家庭的补助 | K5: 合计 | L5: 按项目管理的商品和服务支出 | M5: 按项目管理的对个人和家庭的补助 | N5: 债务利息及费用支出 | O5: 资本性支出（基本建设） | P5: 资本性支出 | Q5: 对企业补助（基本建设） | R5: 对企业补助 | S5: 对社会保障基金补助 | T5: 其他支出
E6: 合计 | F6: 0.00
A11: 本单位无对政府性基金预算支出的安排，故以空表列示

Sheet 18国有资本经营预算
A2: 国有资本经营预算支出表
A3: 单位：岳阳县广播电视台 | H3: 金额单位：万元
A4: 科目编码 | B4: 科目名称 | C4: 合计 | D4: 本年国有资本经营预算支出 | H4: 项目支出
D5: 小计 | E5: 人员经费 | G5: 公用经费
E6: 工资福利支出 | F6: 对个人和家庭的补助
B7: 合计 | C7: 0.00
A14: 本单位无国有资本经营支出预算的安排，故以空表列示

Sheet 19财政专户管理资金
A2: 财政专户管理资金预算支出表
A3: 单位：岳阳县广播电视台 | H3: 金额单位：万元
A4: 科目编码 | B4: 科目名称 | C4: 合计 | D4: 本年财政专户管理资金预算支出 | H4: 项目支出
D5: 小计 | E5: 人员经费 | G5: 公用经费
E6: 工资福利支出 | F6: 对个人和家庭的补助
B7: 合计 | C7: 0.00
A14: 本单位无财政专户管路资金预算支出的安排，故以空表列示

Sheet 20专项清单
A2: 专项资金预算汇总表
A3: 单位：岳阳县广播电视台 | N3: 金额单位：万元
A4: 单位代码 | C4: 单位名称（专项名称） | D4: 预算额度 | N4: 预算编制方式
D5: 总计 | E5: 一般公共预算 | K5: 政府性基金 | L5: 国有资本经营预算 | M5: 社会保险基金预算资金 | N5: 编入部门预算金额 | O5: 财政代编金额
E6: 一般公共预算小计 | F6: 经费拨款 | G6: 纳入一般公共预算管理的非税收入 | H6: 一般债券 | I6: 外国政府和国际组织贷款 | J6: 外国政府和国际组织赠款
C7: 合计 | D7: 226.00 | E7: 226.00 | F7: 226.00 | N7: 226.00
A8: 411 | C8: 岳阳县广播电视台 | D8: =D9+D10+D11 -> 226.00 | E8: =E9+E10+E11 -> 226.00 | F8: =F9+F10+F11 -> 226.00 | N8: =N9+N10+N11 -> 226.00
A9: 411001 | C9: 电视广告及新闻宣传支出 | D9: 107.00 | E9: 107.00 | F9: 107.00 | N9: 107.00
A10: 411001 | C10: 融媒体中心运行费 | D10: 70.00 | E10: 70.00 | F10: 70.00 | N10: 70.00
A11: 411001 | C11: 新湖南省级技术平台运维服务费 | D11: 49.00 | E11: 49.00 | F11: 49.00 | N11: 49.00

Sheet 21项目支出绩效目标表
C2: 项目支出绩效目标表
A3: 单位：岳阳县广播电视台 | L3: 金额单位：万元
A4: 单位代码 | B4: 单位（专项）名称 | C4: 资金总额 | D4: 实施期绩效目标 | E4: 绩效指标
E5: 一级指标 | F5: 二级指标 | G5: 三级指标 | H5: 指标值 | I5: 指标值内容 | J5: 评（扣分标准） | K5: 度量单位 | L5: 指标值类型 | M5: 备注
A6: 411001 | B6: 岳阳县广播电视台 | C6: 226.00
A7: 411001 | B7: 电视广告及新闻宣传支出 | C7: 107.00 | D7: 扩大广告业务，加强新闻宣传 | E7: 成本指标 | F7: 社会成本指标 | G7: 无 | H7: 无 | I7: 无 | J7: 未达指标值酌情扣分 | K7: 无 | L7: 定量
F8: 生态环境指标 | G8: 无 | H8: 无 | I8: 无 | J8: 未达指标值酌情扣分 | K8: 无 | L8: 定量
F9: 经济成本指标 | G9: 预算控制数 | H9: ≤1070000元 | I9: 电视广告及新闻宣传支出 | J9: 未达指标值酌情扣分 | K9: 元 | L9: ≤
E10: 产出指标 | F10: 数量指标 | G10: 文化交流次数 | H10: ≥20次 | I10: 新闻宣传文化交流至少20次 | J10: 未达指标值酌情扣分 | K10: 次 | L10: ≥
F11: 质量指标 | G11: 年度培训完成率 | H11: ≥80% | I11: 年度培训完成率 | J11: 未达指标值酌情扣分 | K11: % | L11: ≥
F12: 时效指标 | G12: 任务完成时间 | H12: 2023-12-31 | I12: 任务完成时间 | J12: 未达指标值酌情扣分 | K12: 次 | L12: 定量
E13: 效益指标 | F13: 经济效益指标 | G13: 无 | H13: 无 | I13: 无 | J13: 未达指标值酌情扣分 | K13: 无 | L13: 定量
F14: 社会效益指标 | G14: 受益人口达标率 | H14: ≥60% | I14: 任务完成时间 | J14: 未达指标值酌情扣分 | K14: 个 | L14: 定量
F15: 生态效益指标 | G15: 无 | H15: 无 | I15: 无 | J15: 未达指标值酌情扣分 | K15: 无 | L15: 定量
E16: 满意度指标 | F16: 服务对象满意度指标 | G16: 受对象满意度 | H16: ≥90% | I16: 受对象满意度 | J16: 未达指标值酌情扣分 | K16: % | L16: ≥
A17: 411001 | B17: 融媒体中心运行费 | C17: 70.00 | D17: 保障融媒体中心运转 | E17: 效益指标 | F17: 经济效益指标 | G17: 无 | H17: 无 | I17: 无 | J17: 未达指标值酌情扣分 | K17: 无 | L17: 定性
F18: 社会效益指标 | G18: 提升政府影响力 | H18: 良好 | I18: 反响良好 | J18: 未达指标值酌情扣分 | K18: 无 | L18: 定性
F19: 生态效益指标 | G19: 无 | H19: 无 | I19: 无 | J19: 未达指标值酌情扣分 | K19: 无 | L19: 定性
E20: 满意度指标 | F20: 服务对象满意度指标 | G20: 社会公众满意度 | H20: ≥95% | I20: 社会公众满意度 | J20: 未达指标值酌情扣分 | K20: % | L20: ≥
E21: 产出指标 | F21: 数量指标 | G21: 发布新闻条数 | H21: 1000条 | I21: 1000条 | J21: 未达指标值酌情扣分 | K21: 条 | L21: 定量
F22: 质量指标 | G22: 上稿率 | H22: 80% | I22: 上稿率 | J22: 未达指标值酌情扣分 | K22: 条 | L22: 定量
F23: 时效指标 | G23: 2023年12月底完成 | H23: 100% | I23: 2023年12月底完成 | J23: 未达指标值酌情扣分 | K23: 次 | L23: 定量
E24: 成本指标 | F24: 社会成本指标 | G24: 无 | H24: 无 | I24: 无 | J24: 未达指标值酌情扣分 | K24: 无 | L24: 定量
F25: 生态环境指标 | G25: 无 | H25: 无 | I25: 无 | J25: 未达指标值酌情扣分 | K25: 无 | L25: 定量
F26: 经济成本指标 | G26: 预算控制数 | H26: ≤700000元 | I26: 融媒体中心运行费 | J26: 未达指标值酌情扣分 | K26: 元 | L26: ≤
A27: 411001 | B27: 新湖南省级技术平台运维服务费 | C27: 49.00 | D27: 加强技术平台维护 | E27: 成本指标 | F27: 社会成本指标 | G27: 无 | H27: 无 | I27: 无 | J27: 未达指标值酌情扣分 | K27: 无 | L27: 定性
F28: 生态环境指标 | G28: 无 | H28: 无 | I28: 无 | J28: 未达指标值酌情扣分 | K28: 无 | L28: 定性
F29: 经济成本指标 | G29: 预算控制数 | H29: ≤490000元 | I29: 新湖南省级技术平台运维服务费 | J29: 未达指标值酌情扣分 | K29: 元 | L29: ≤
E30: 产出指标 | F30: 数量指标 | G30: 出错率低于10% | H30: ≤10% | I30: 出错率低于10% | J30: 未达指标值酌情扣分 | K30: % | L30: ≤
F31: 质量指标 | G31: 信号良好，正常推送 | H31: ≥90% | I31: 信号良好，正常推送 | J31: 未达指标值酌情扣分 | K31: % | L31: 定量
F32: 时效指标 | G32: 按时按量推送 | H32: ≥100条 | I32: 按时按量推送 | J32: 未达指标值酌情扣分 | K32: 条 | L32: 定量
E33: 满意度指标 | F33: 服务对象满意度指标 | G33: 受众满意度 | H33: ≥95% | I33: 受众满意度 | J33: 未达指标值酌情扣分 | K33: % | L33: 定量
E34: 效益指标 | F34: 经济效益指标 | G34: 无 | H34: 无 | I34: 无 | J34: 未达指标值酌情扣分 | K34: 无 | L34: 定性
F35: 社会效益指标 | G35: 通过无间断宣传提升影响力 | H35: ≥90% | I35: 通过无间断宣传提升影响力 | J35: 未达指标值酌情扣分 | K35: % | L35: 定量
F36: 生态效益指标 | G36: 无 | H36: 无 | I36: 无 | J36: 未达指标值酌情扣分 | K36: 无 | L36: 定性

Sheet 22整体支出绩效目标表
A1: 整体支出绩效目标表
A2: 单位：岳阳县广播电视台 | Q2: 金额单位：万元
A3: 单位编码 | B3: 单位名称 | C3: 年度预算申请 | J3: 整体绩效目标 | K3: 部门整体支出年度绩效目标
C4: 资金总额 | D4: 按收入性质分 | H4: 按支出性质分
D5: 一般公共预算 | E5: 政府性基金拨款 | F5: 财政专户管理资金 | G5: 其他资金 | H5: 基本支出 | I5: 项目支出 | K5: 一级指标 | L5: 二级指标 | M5: 三级指标 | N5: 指标值类型 | O5: 指标值 | P5: 度量单位 | Q5: 指标值说明 | R5: 备注
A6: 411001 | B6: 岳阳县广播电视台 | C6: 1,201.70 | H6: =C6-I6 -> 975.70 | I6: 226.00 | J6: 目标1：发布新闻 目标2：新闻网日常运营维护 目标3：扩大影响力 | K6: 产出指标 | L6: 重点工作任务完成 | M6: 发布新闻条数 | N6: ≥ | O6: 80 | P6: - | Q6: 反映本部门负责的重点工作任务进展情况。分项具体列示本部门重点工作任务推进情况，相关情况应予以细化、量化表述。
L7: 履职目标实现 | M7: 新闻网更新、推送新闻条数 | N7: ≥ | O7: 2 | P7: - | Q7: 反映本部门负责的重点工作任务进展情况。分项具体列示本部门重点工作任务推进情况，相关情况应予以细化、量化表述。
K8: 效益指标 | L8: 履职效益 | M8: 投入资金到位率 | N8: ≥ | O8: 80 | P8: - | Q8: 反映部门履职对经济社会发展等所带来的直接或间接影响。可根据部门实际情况有选择的进行设置，并将三级指标细化为相应的个性化指标。
L9: 社会效益 | M9: 发展新巴陵粉丝数量 | N9: ≥ | O9: 3000 | P9: 个 | Q9: 反映部门履职对经济社会发展等所带来的直接或间接影响。可根据部门实际情况有选择的进行设置，并将三级指标细化为相应的个性化指标。
K10: 满意度指标 | L10: 满意度 | M10: 服务对象满意度 | N10: ≥ | O10: 95 | P10: % | Q10: 反映社会公众或服务对象在部门履职效果、解决民众关心的热点问题等方面的满意程度。可根据部门实际情况有选择的进行设置，并将三级指标细化为相应的个性化指标

Sheet 23其他资金绩效目标表
A1: 其他资金绩效目标表
A2: 单位：岳阳县广播电视台 | P2: 单位：万元
A3: 单位代码 | B3: 单位（专项）名称 | C3: 资金总额 | D3: 资金投向 | F3: 实施期绩效目标 | G3: 年度绩效目标 | H3: 绩效指标
D4: 省级支出 | E4: 对市县专项转移支付 | H4: 产出指标 | L4: 效益指标
H5: 数量指标 | I5: 质量指标 | J5: 时效指标 | K5: 成本指标 | L5: 经济效益指标 | M5: 社会效益指标 | N5: 生态效益指标 | O5: 可持续影响指标 | P5: 社会公益或服务对象满意度指标
B6: 合计 | C6: 0.00
A9: 本单位无其他资金绩效目标的安排，故以空表列示
